{"text_format":"1","workbook":"xlsx","n_sheets":4,"sheets":["Pagrindinė lentelė","Indeksavimo lentelė","Pagrindinės lentelės pildymas"," "],"not_rendered":{"charts":0,"images":12,"macros":1,"external_links":0,"defined_names":5,"comments":3,"pivot_tables":0},"unopened":[],"bounds":{"document_bytes":16777216,"sheet_cells":100000,"rows_first":2000,"rows_last":500,"rows_between":2000,"halvings":0,"cell_chars":16384,"cell_head_chars":4096},"cells_cut":0,"cells_raw":0,"read":"whole","date_system":"1900"}

{"sheet":"Pagrindinė lentelė","index":0,"n_rows":71,"n_cols":122,"rows_kept":71,"cut":false,"hidden":false,"merged":[[69,0,69,5],[70,0,83,5],[43,0,43,4],[62,0,67,5],[61,0,61,5],[1,0,1,5],[3,0,3,5],[4,0,4,5],[6,0,6,2],[7,0,7,2],[6,3,6,5],[7,3,7,5],[5,0,5,2],[5,3,5,5],[24,4,26,4],[6,10,6,11],[8,10,8,11],[9,0,9,2],[8,0,8,2],[8,3,8,5],[9,3,9,5],[24,5,26,5],[12,0,17,0],[12,4,12,5],[13,4,13,5],[14,4,14,5],[15,4,15,5],[16,4,16,5],[17,3,17,4],[0,0,0,5],[10,3,10,5],[10,0,10,2],[45,0,47,0],[45,1,47,1],[45,2,47,2],[45,3,47,3],[45,4,47,4],[44,0,44,1],[22,0,22,5],[23,1,23,2],[23,3,23,4],[24,0,26,0],[24,1,26,1],[24,2,26,2],[24,3,26,3],[2,116,2,121],[3,117,3,118],[3,119,3,120],[4,116,6,116],[4,117,6,117],[4,118,6,118],[4,119,6,119],[4,120,6,120],[4,121,6,121]]}
[]
["Asmens įsiskolinimo apskaičiavimas*"]
["escolher idoma/chosse language",null,"Idioma:","English",null,null,null,null,null,null,null,null,null,null,null,null,null,null,null,null,null,null,null,null,null,null,null,null,null,null,null,null,null,null,null,null,null,null,null,null,null,null,null,null,null,null,null,null,null,null,null,null,null,null,null,null,null,null,null,null,null,null,null,null,null,null,null,null,null,null,null,null,null,null,null,null,null,null,null,null,null,null,null,null,null,null,null,null,null,null,null,null,null,null,null,null,null,null,null,null,null,null,null,null,null,null,null,null,null,null,null,null,null,null,null,null,"Metinės sumos lentelė"]
["* Prašome vadovautis lentelės pildymo nurodymais.",null,null,null,null,null,null,null,null,null,null,null,null,null,null,null,null,null,null,null,null,null,null,null,null,null,null,null,null,null,null,null,null,null,null,null,null,null,null,null,null,null,null,null,null,null,null,null,null,null,null,null,null,null,null,null,null,null,null,null,null,null,null,null,null,null,null,null,null,null,null,null,null,null,null,null,null,null,null,null,null,null,null,null,null,null,null,null,null,null,null,null,null,null,null,null,null,null,null,null,null,null,null,null,null,null,null,null,null,null,null,null,null,null,null,null,"Metai",null,null,"Valiuta     "]
["Sprendimas / Teisminis susitarimas / Autentiškas dokumentas",null,null,null,null,null,null,null,null,null,null,null,null,null,null,null,null,null,null,null,null,null,null,null,null,null,null,null,null,null,null,null,null,null,null,null,null,null,null,null,null,null,null,null,null,null,null,null,null,null,null,null,null,null,null,null,null,null,null,null,null,null,null,null,null,null,null,null,null,null,null,null,null,null,null,null,null,null,null,null,null,null,null,null,null,null,null,null,null,null,null,null,null,null,null,null,null,null,null,null,null,null,null,null,null,null,null,null,null,null,null,null,null,null,null,null,"Mėnuo","Nustatyta mėnesinė suma","Skolininko sumokėta suma","Kita valiuta sumokėta suma","Kitų šaltinių sumokėta suma","Įsiskolinta suma"]
["Pareiškėjas:"]
["Sprendimo / Teisminio susitarimo / Autentiško dokumento data (DD/MM/MMMM) ir numeris:"]
["Kilmės vietos teismo / kompetentingos institucijos pavadinimas:",null,null,null,null,null,null,null,null,null,null,null,null,null,null,null,null,null,null,null,null,null,null,null,null,null,null,null,null,null,null,null,null,null,null,null,null,null,null,null,null,null,null,null,null,null,null,null,null,null,null,null,null,null,null,null,null,null,null,null,null,null,null,null,null,null,null,null,null,null,null,null,null,null,null,null,null,null,null,null,null,null,null,null,null,null,null,null,null,null,null,null,null,null,null,null,null,null,null,null,null,null,null,null,null,null,null,null,null,null,null,null,null,null,null,null,"Sausis",null,null,null,null,{"$f":"DN8-DO8-DQ8","v":0}]
["Atsakovas:",null,null,null,null,null,null,null,null,null,null,null,null,null,null,null,null,null,null,null,null,null,null,null,null,null,null,null,null,null,null,null,null,null,null,null,null,null,null,null,null,null,null,null,null,null,null,null,null,null,null,null,null,null,null,null,null,null,null,null,null,null,null,null,null,null,null,null,null,null,null,null,null,null,null,null,null,null,null,null,null,null,null,null,null,null,null,null,null,null,null,null,null,null,null,null,null,null,null,null,null,null,null,null,null,null,null,null,null,null,null,null,null,null,null,null,"Vasaris",null,null,null,null,0]
["Asmuo, kuriam privaloma mokėti išlaikymo išmokas:",null,null,null,null,null,null,null,null,null,null,null,null,null,null,null,null,null,null,null,null,null,null,null,null,null,null,null,null,null,null,null,null,null,null,null,null,null,null,null,null,null,null,null,null,null,null,null,null,null,null,null,null,null,null,null,null,null,null,null,null,null,null,null,null,null,null,null,null,null,null,null,null,null,null,null,null,null,null,null,null,null,null,null,null,null,null,null,null,null,null,null,null,null,null,null,null,null,null,null,null,null,null,null,null,null,null,null,null,null,null,null,null,null,null,null,"Kovas",null,null,null,null,0]
["Prašymo numeris:",null,null,null,null,null,null,null,null,null,null,null,null,null,null,null,null,null,null,null,null,null,null,null,null,null,null,null,null,null,null,null,null,null,null,null,null,null,null,null,null,null,null,null,null,null,null,null,null,null,null,null,null,null,null,null,null,null,null,null,null,null,null,null,null,null,null,null,null,null,null,null,null,null,null,null,null,null,null,null,null,null,null,null,null,null,null,null,null,null,null,null,null,null,null,null,null,null,null,null,null,null,null,null,null,null,null,null,null,null,null,null,null,null,null,null,"Balandis",null,null,null,null,0]
[null,null,null,null,null,null,null,null,null,null,null,null,null,null,null,null,null,null,null,null,null,null,null,null,null,null,null,null,null,null,null,null,null,null,null,null,null,null,null,null,null,null,null,null,null,null,null,null,null,null,null,null,null,null,null,null,null,null,null,null,null,null,null,null,null,null,null,null,null,null,null,null,null,null,null,null,null,null,null,null,null,null,null,null,null,null,null,null,null,null,null,null,null,null,null,null,null,null,null,null,null,null,null,null,null,null,null,null,null,null,null,null,null,null,null,null,"Gegužė",null,null,null,null,0]
["Sprendimo / Teisminio susitarimo / Autentiško dokumento valiuta            ",null,"    Euras (EUR)","  ","Levas (BGN)",null,null,null,null,null,null,null,null,null,null,null,null,null,null,null,null,null,null,null,null,null,null,null,null,null,null,null,null,null,null,null,null,null,null,null,null,null,null,null,null,null,null,null,null,null,null,null,null,null,null,null,null,null,null,null,null,null,null,null,null,null,null,null,null,null,null,null,null,null,null,null,null,null,null,null,null,null,null,null,null,null,null,null,null,null,null,null,null,null,null,null,null,null,null,null,null,null,null,null,null,null,null,null,null,null,null,null,null,null,null,null,"Birželis",null,null,null,null,0]
[null,null,"    Čekijos krona (CZK)",null,"Kroatijos kuna (HRK)  ",null,null,null,null,null,null,null,null,null,null,null,null,null,null,null,null,null,null,null,null,null,null,null,null,null,null,null,null,null,null,null,null,null,null,null,null,null,null,null,null,null,null,null,null,null,null,null,null,null,null,null,null,null,null,null,null,null,null,null,null,null,null,null,null,null,null,null,null,null,null,null,null,null,null,null,null,null,null,null,null,null,null,null,null,null,null,null,null,null,null,null,null,null,null,null,null,null,null,null,null,null,null,null,null,null,null,null,null,null,null,null,"Liepa",null,null,null,null,0]
[null,null,"    Forintas (HUF)",null,"Litas (LTL)",null,null,null,null,null,null,null,null,null,null,null,null,null,null,null,null,null,null,null,null,null,null,null,null,null,null,null,null,null,null,null,null,null,null,null,null,null,null,null,null,null,null,null,null,null,null,null,null,null,null,null,null,null,null,null,null,null,null,null,null,null,null,null,null,null,null,null,null,null,null,null,null,null,null,null,null,null,null,null,null,null,null,null,null,null,null,null,null,null,null,null,null,null,null,null,null,null,null,null,null,null,null,null,null,null,null,null,null,null,null,null,"Rugpjūtis",null,null,null,null,0]
[null,null,"    Lenkijos zlotas (PLN) ",null,"Rumunijos lėja (RON)",null,null,null,null,null,null,null,null,null,null,null,null,null,null,null,null,null,null,null,null,null,null,null,null,null,null,null,null,null,null,null,null,null,null,null,null,null,null,null,null,null,null,null,null,null,null,null,null,null,null,null,null,null,null,null,null,null,null,null,null,null,null,null,null,null,null,null,null,null,null,null,null,null,null,null,null,null,null,null,null,null,null,null,null,null,null,null,null,null,null,null,null,null,null,null,null,null,null,null,null,null,null,null,null,null,null,null,null,null,null,null,"Rugsėjis",null,null,null,null,0]
[null,null,"    Krona (SEK)",null,"Svaras sterlingų (GBP)",null,null,null,null,null,null,null,null,null,null,null,null,null,null,null,null,null,null,null,null,null,null,null,null,null,null,null,null,null,null,null,null,null,null,null,null,null,null,null,null,null,null,null,null,null,null,null,null,null,null,null,null,null,null,null,null,null,null,null,null,null,null,null,null,null,null,null,null,null,null,null,null,null,null,null,null,null,null,null,null,null,null,null,null,null,null,null,null,null,null,null,null,null,null,null,null,null,null,null,null,null,null,null,null,null,null,null,null,null,null,null,"Spalis",null,null,null,null,0]
[null,null,"    Kita (nurodyti):",null,null,null,null,null,null,null,null,null,null,null,null,null,null,null,null,null,null,null,null,null,null,null,null,null,null,null,null,null,null,null,null,null,null,null,null,null,null,null,null,null,null,null,null,null,null,null,null,null,null,null,null,null,null,null,null,null,null,null,null,null,null,null,null,null,null,null,null,null,null,null,null,null,null,null,null,null,null,null,null,null,null,null,null,null,null,null,null,null,null,null,null,null,null,null,null,null,null,null,null,null,null,null,null,null,null,null,null,null,null,null,null,null,"Lapkritis",null,null,null,null,0]
[null,null,null,null,null,null,null,null,null,null,null,null,null,null,null,null,null,null,null,null,null,null,null,null,null,null,null,null,null,null,null,null,null,null,null,null,null,null,null,null,null,null,null,null,null,null,null,null,null,null,null,null,null,null,null,null,null,null,null,null,null,null,null,null,null,null,null,null,null,null,null,null,null,null,null,null,null,null,null,null,null,null,null,null,null,null,null,null,null,null,null,null,null,null,null,null,null,null,null,null,null,null,null,null,null,null,null,null,null,null,null,null,null,null,null,null,"Gruodis",null,null,null,null,0]
[]
[]
[]
["Metinės sumos lentelė"]
["Metai",null,null,"Valiuta     "]
["Mėnuo","Nustatyta mėnesinė suma","Skolininko sumokėta suma","Kita valiuta sumokėta suma","Kitų šaltinių sumokėta suma","Įsiskolinta suma"]
[]
[]
["Sausis",null,null,null,null,{"$f":"B28-C28-E28","v":0}]
["Vasaris",null,null,null,null,0]
["Kovas",null,null,null,null,0]
["Balandis",null,null,null,null,0]
["Gegužė",null,null,null,null,0]
["Birželis",null,null,null,null,0]
["Liepa",null,null,null,null,0]
["Rugpjūtis",null,null,null,null,0]
["Rugsėjis",null,null,null,null,0]
["Spalis",null,null,null,null,0]
["Lapkritis",null,null,null,null,0]
["Gruodis",null,null,null,null,0]
["IŠ VISO",{"$f":"SUM(B28:B39)","v":0},{"$f":"SUM(C28:C39)","v":0},null,{"$f":"SUM(E28:E39)","v":0},0]
[]
[]
[]
["Suvestinė lentelė"]
["Valiuta     "]
["Metai","Nustatyta metinė suma","Skolininko sumokėta suma","Kitų šaltinių sumokėta suma","Įsiskolinta suma"]
[]
[]
[null,null,null,null,{"$f":"B49-C49-D49","v":0}]
[null,null,null,null,0]
[null,null,null,null,0]
[null,null,null,null,0]
[null,null,null,null,0]
[null,null,null,null,0]
[null,null,null,null,0]
[null,null,null,null,0]
[null,null,null,null,0]
[null,null,null,null,0]
["IŠ VISO",{"$f":"SUM(B49:B58)","v":0},{"$f":"SUM(C49:C58)","v":0},{"$f":"SUM(D49:D58)","v":0},0]
[]
[]
["Kita svarbi informacija (pildo prašančioji centrinė institucija)"]
[]
[]
[]
[]
[]
[]
[]
["                                  Indeksavimo lentelė"]
["\n\nVieta: ……………………………...…………. Data: ………………...……...…………... (dd/mm/mmmm)\n\nPareiškėjo parašas: ……………………………………………………………………………..................…...............\n\nir (arba) prireikus\n\nAsmuo / institucija, kurį (-ią) prašančioji valstybė narė yra įgaliojusi pildyti formą pareiškėjo vardu: ……........…………………….............................................……...................................\n…………………………………………………………...……………..............................................…........................…"]

{"sheet":"Indeksavimo lentelė","index":1,"n_rows":33,"n_cols":15,"rows_kept":33,"cut":false,"hidden":false,"merged":[[4,6,5,6],[30,1,31,5],[0,0,0,14],[1,0,1,14],[4,9,4,14],[5,0,5,1],[3,6,3,7],[3,2,3,4],[6,0,28,1],[4,3,5,3]]}
["Indeksavimo lentelė"]
["(indeksuotai sumai apskaičiuoti)"]
[]
[null,null,"Automatinio apskaičiavimo priemonė",null,null,null,"Indeksavimo suvestinė"]
[null,null,"Metai","Indeksavimas","Suma",null,"Metai","Valstybė narė",null,"Atsakingas subjektas:",{"$f":"VLOOKUP(idioma,trad_v,26,FALSE)","v":{"$error":"#REF!"}},{"$f":"VLOOKUP(idioma,trad_v,26,FALSE)","v":{"$error":"#REF!"}},{"$f":"VLOOKUP(idioma,trad_v,26,FALSE)","v":{"$error":"#REF!"}},{"$f":"VLOOKUP(idioma,trad_v,26,FALSE)","v":{"$error":"#REF!"}},{"$f":"VLOOKUP(idioma,trad_v,26,FALSE)","v":{"$error":"#REF!"}}]
["Nustatyta mėnesinė išlaikymo suma* ",null,2000,null,100,null,{"$f":"VLOOKUP(idioma,trad_v,7,FALSE)","v":{"$error":"#REF!"}},"Iš viso"]
["Atnaujinta nustatyta mėnesinė suma",null,{"$f":"C6+1","v":2001},{"$f":"VLOOKUP(C7-1,$G$7:$H$29,2)","v":0},{"$f":"E6+(E6*D7)","v":100},null,1992]
[null,null,{"$f":"C7+1","v":2002},{"$f":"VLOOKUP(C8-1,$G$7:$H$29,2)","v":0},100,null,1993]
[null,null,2003,{"$f":"VLOOKUP(C9-1,$G$7:$H$29,2)","v":0},100,null,1994]
[null,null,2004,0,100,null,1995]
[null,null,2005,0,100,null,1996]
[null,null,2006,0,100,null,1997]
[null,null,2007,0,100,null,1998]
[null,null,2008,0,100,null,1999]
[null,null,2009,0,100,null,2000]
[null,null,2010,0,100,null,2001]
[null,null,2011,0,100,null,2002]
[null,null,2012,0,100,null,2003]
[null,null,2013,0,100,null,2004]
[null,null,2014,0,100,null,2005]
[null,null,2015,0,100,null,2006]
[null,null,2016,0,100,null,2007]
[null,null,2017,0,100,null,2008]
[null,null,2018,0,100,null,2009]
[null,null,2019,0,100,null,2010]
[null,null,2020,0,100,null,2011]
[null,null,2021,0,100,null,2012]
[null,null,2022,0,100,null,2013]
[null,null,2023,0,100,null,2014]
[]
[null,"* įrašyti metus ir išlaikymo sumą arba ankstesniems metams nustatytą vertę, įrašytą į Metinės sumos lentelę"]
[]
[null,"Indeksavimo lentelė yra tik orientacinė; valstybės narės turi parengti savo papildomą lentelę ir formules, suderintas su jų indeksavimo skaičiavimo sistema. "]

{"sheet":"Pagrindinės lentelės pildymas","index":2,"n_rows":79,"n_cols":1,"rows_kept":79,"cut":false,"hidden":false,"merged":[[27,0,27,8],[26,0,26,8],[25,0,25,8],[24,0,24,8],[22,0,22,8],[0,0,0,8],[12,0,12,8],[11,0,11,8],[16,0,16,8],[1,0,1,8],[13,0,13,8],[14,0,14,8],[15,0,15,8],[86,0,86,8],[28,0,28,8],[78,0,78,8],[79,0,79,8],[45,0,45,8],[65,0,65,8],[77,0,77,8],[76,0,76,8],[63,0,63,8],[67,0,67,8],[66,1,66,9],[49,0,49,8],[44,0,44,8],[47,0,47,8],[46,0,46,8]]}
["Pagrindinės lentelės pildymo nurodymai"]
["Ši forma nėra privaloma. Ją gali pildyti pareiškėjas ir (arba) kitas asmuo / institucija, prašančiojoje valstybėje narėje įgaliotas (-a) užpildyti formą pareiškėjo vardu. Galima pildyti elektroniniu būdu ar popieriuje, „Excel“ arba PDF formatu."]
[]
[]
["1."]
["2."]
["3."]
["4."]
["5."]
["6."]
[]
["1. Įrašyti pareiškėjo, t. y. fizinio asmens ar viešojo subjekto, savo vardu pateikusio prašymą dėl išlaikymo išmokų išieškojimo, vardą ir pavardę arba pavadinimą."]
["2. Įrašyti sprendimo, teisminio susitarimo ar autentiško dokumento, kuriuo grindžiamas įsiskolinimo apskaičiavimas, datą ir numerį. Jeigu įsiskolinimas apskaičiuojamas remiantis daugiau nei vienu sprendimu, teisminiu susitarimu ar autentišku dokumentu, reikia įrašyti visų jų datas ir numerius padidinant narvelį ar įterpiant daugiau eilučių."]
["3. Įrašyti kilmės vietos teismo ar kitos kompetentingos institucijos pavadinimą. Jeigu dalyvauja daugiau nei vienas teismas ar kompetentinga institucija (kaip 2 punkte), įrašyti visų jų pavadinimus padidinant narvelį ar įterpiant daugiau eilučių."]
["4. Įrašyti atsakovo (asmens, kurio atžvilgiu pateiktas prašymas dėl išlaikymo) vardą ir pavardę."]
["5. Įrašyti asmens, kuriam būtų skirtas įsiskolintas išlaikymas, vardą ir pavardę. Kiekvienam asmeniui, kuriam įsiskolintas išlaikymas, pildoma atskira forma."]
["6. Įrašyti prašymo numerį (prašančioji centrinė institucija)."]
[]
["7."]
[]
[]
[]
["7. Nurodyti valiutą, kuria nustatyta išlaikymo prievolė ir vykdoma apskaita (t. y. valiutą, nurodytą sprendime, teisminiame susitarime ar autentiškame dokumente). Jei formos pildymo metu valiuta dokumento kilmės valstybėje yra nebe ta valiuta, kuri buvo nurodyta sprendime, teisminiame susitarime ar autentiškame dokumente, rekomenduojama metinės sumos lentelėje įrašyti sumas ta valiuta, kuria jos turėjo būti mokamos, kad automatiniai kiekvienų metų įsiskolinimo skaičiavimai būtų atliekami tais metais naudota valiuta. Tada reikia perskaičiuoti sumą ta valiuta, kuri naudojama formos pildymo metu, ir įrašyti į suvestinę lentelę, kad bendra sukaupta suma būtų nurodyta ta valiuta. Tokiu atveju laukelyje „Kita svarbi informacija“ patartina pateikti paaiškinimą. "]
["8."]
["8. Įrašyti metus, kuriems pildoma Metinės sumos lentelė. Užpildyti tiek lentelių, kiek reikia, kad būtų apimtas visas įsiskolinimo kaupimosi laikotarpis (t. y. kiekvieniems kalendoriniams metams), pradedant pirmais metais, kuriais atsirado nepriemoka, ir baigiant paskutiniais."]
["Pridėti papildomų Metinės sumos lentelių galima naudojantis programa „MS Excel“:"]
[" paspaudžiant mygtuką (turi būti aktyvuotos makrokomandos)  "]
["arba "]
["1. pažymint Metinės sumos lentelę ir vieną papildomą eilutę kairiuoju pelės mygtuku ir slenkant žemyn eilučių numeriais (t. y. nuo 21 iki 39 eilutės). Svarbu pasirinkti eilutes, o ne narvelius, nes dėl darbalapio apsaugos kopijuoti ir įterpti galima tik eilutes; 2. paspaudžiant dešinį pelės mygtuką ir pasirenkant „Copy“;  3. paspaudžiant sekančios (t. y. 40) eilutės numerį kairėje pusėje iš karto po pažymėtos srities; 4. paspaudžiant dešinį pelės mygtuką ir iš sąrašo pasirenkant „Insert copied cells“; 5. bus sukurta tuščia papildoma Metinės sumos lentelė su formulėmis. Jei reikia daugiau Metinės sumos lentelių, kartoti 1–4 žingsnius."]
[]
["9."]
[]
[]
[]
[]
[]
[]
[]
[]
[]
[]
[]
[]
["10."]
["9. Lentelėje įsiskolinta suma apskaičiuojama automatiškai, pagal į stulpelius įrašytus duomenis (išskyrus kita valiuta nurodytas sumas, kurios pateikiamos tik informacijos tikslais)."]
["Į reikiamus narvelius įrašyti sumas; jei netaikoma, narvelius palikti tuščius. Kartais pildomi ne visi narveliai ir (arba) stulpeliai. \n Nustatyta mėnesinė suma: įrašyti kiekvieno mėnesio sumą, nurodytą sprendime, teisminiame susitarime ar autentiškame dokumente.\n Skolininko sumokėta suma: įrašyti skolininko faktiškai sumokėtas sumas. Jei ši suma neatitinka atitinkamo mėnesio mėnesinės sumos, galutinis apskaičiavimas parodys likutį. Į stulpelio „Įsiskolinta suma“ likučius tais mėnesiais, kai buvo permoka, galima nekreipti dėmesio. Visa įsiskolinta suma bus parodyta suvestinėje lentelėje. \nKita valiuta sumokėta suma: įrašyti dalinius ar visus skolininko mokėjimus valiuta, kuri nėra valiuta, nurodyta sprendime, teisminiame susitarime ar autentiškame dokumente. Nurodyti sumą ir valiutą (pavyzdžiui, 1 000 CZK/HUF/PLN ir pan.) ir konvertuoti šią sumą lentelės valiuta įvedant keitimo kursą, naudojamą stulpelyje „Kita valiuta sumokėta suma“, ir stulpelyje „Skolininko sumokėta suma“ nurodyti konvertuotą sumą. Mėnesinis mokėjimų kita valiuta įrašas kai kuriems pareiškėjams gali padėti paaiškinti stulpelyje „Skolininko sumokėta suma“ pateikiamus skaičius."]
["Kitų šaltinių sumokėta suma: įrašyti bet kokias viešųjų subjektų ar valdžios institucijų, išskyrus skolininką, sumokėtas sumas. Šiame stulpelyje pareiškėjas ar institucija gali nurodyti bet kokį mokėjimą, gautą ne iš skolininko, o iš kitos institucijos, biuro ar agentūros (paprastai tai išmokos, teikiamos vietoj išlaikymo išmokų). Šiuos mokėjimus galima išieškoti atskira paraiška. Jei netaikytina, į šį stulpelį galima nekreipti dėmesio. Lentelės pabaigoje esančiame laukelyje „Kita svarbi informacija“ reikia pateikti informacijos apie kitus šaltinius. Stulpelis nepildomas, jei pareiškėjas yra viešasis subjektas, nes nėra jokio kito šaltinio (t. y. išskyrus pareiškėją). Šiame stulpelyje nurodytos sumos neįtraukiamos į išieškojimo paraišką ir yra atimamos iš nustatytos mėnesinės sumos."]
["Įsiskolinta suma: Šiame stulpelyje parodomas kiekvieno mėnesio likutis, automatiškai apskaičiuotas naudojantis stulpeliuose „Nustatyta mėnesinė suma“, „Skolininko sumokėta suma“, „Kitų šaltinių sumokėta suma“ pateiktais skaičiais. Jeigu mokama nereguliariai ar nevienodomis sumomis, kai kuriais mėnesiais išlaikymo prievolė gali būti didesnė nei nustatyta, kitais – mažesnė. Tačiau suvestinėje lentelėje bus pateiktas faktinis likutis, nepriklausomai nuo permokų ar nepriemokų įsiskolinimo kaupimo laikotarpiu."]
[]
["10. Metinės sumos lentelės paskutinėje eilutėje „Iš viso“ suma apskaičiuojama automatiškai."]
[]
[]
[]
["11."]
[]
[]
[]
[]
[]
[]
[]
[]
[]
["11. Pirmame stulpelyje įrašyti metus, kuriems užpildyta Metinės sumos lentelė. Sumoms skirtuose stulpeliuose įrašyti sumas, nurodytas Metinės sumos lentelių eilutėje „Iš viso“. Stulpelis „Kita valiuta sumokėta suma“ čia neįtrauktas, nes jis buvo reikalingas tik informacijos tikslais."]
["12."]
["12. Pateikti papildomos informacijos, kurios nebuvo galima pateikti pirmiau."]
["13."]
["13. Jei naudojamas indeksavimas ir pateikiama indeksavimo lentelė, reikia pažymėti langelį ir stulpelyje „Nustatyta mėnesinė suma“ nurodyti kiekvieno laikotarpio indeksuotas sumas (pagal valstybės narės nacionalinius teisės aktus). Tokiu atveju nustatyta mėnesinė suma ilgainiui gali kisti.  Papildomoje lentelėje nurodyti naujos sumos apskaičiavimo metodą ir nacionalinius teisės aktus, kuriais grindžiamas indeksavimas."]
["14."]
["15."]
[]
["16."]
[]
[]
[]
[]
["14. Įrašyti pasirašymo vietą ir datą."]
["15. Jei prašymą pildo pats pareiškėjas, pasirašo jis pats."]
["16. Jei prašymą pildo ne pareiškėjas, įrašyti įgalioto asmens vardą ir pavardę arba institucijos pavadinimą. Tokiu atveju reikia pateikti patikimos informacijos (oficialų dokumentą ar pareiškėjo pareiškimą) apie formoje pateikiamų duomenų šaltinį."]

{"sheet":" ","index":3,"n_rows":19,"n_cols":6,"rows_kept":19,"cut":false,"hidden":false,"merged":[[1,0,1,5],[3,0,5,0],[3,1,5,1],[3,2,5,2],[3,3,5,3],[3,4,5,4],[3,5,5,5],[2,1,2,2],[2,3,2,4]]}
[]
["Metinės sumos lentelė"]
["Metai",null,null,"Valiuta     "]
["Mėnuo","Nustatyta mėnesinė suma","Skolininko sumokėta suma","Kita valiuta sumokėta suma","Kitų šaltinių sumokėta suma","Įsiskolinta suma"]
[]
[]
["Sausis",null,null,null,null,{"$f":"B7-C7-E7","v":0}]
["Vasaris",null,null,null,null,0]
["Kovas",null,null,null,null,0]
["Balandis",null,null,null,null,0]
["Gegužė",null,null,null,null,0]
["Birželis",null,null,null,null,0]
["Liepa",null,null,null,null,0]
["Rugpjūtis",null,null,null,null,0]
["Rugsėjis",null,null,null,null,0]
["Spalis",null,null,null,null,0]
["Lapkritis",null,null,null,null,0]
["Gruodis",null,null,null,null,0]
["IŠ VISO",{"$f":"SUM(B7:B18)","v":0},{"$f":"SUM(C7:C18)","v":0},null,{"$f":"SUM(E7:E18)","v":0},0]